bitfinex/quotes_ETHUSD_20260313
["timestamp","ask_amount","ask_price","bid_price","bid_amount"]
[1773393191315,0.002,2104.4,2104.1,0.25313584]
[1773393191612,0.002,2104.4,2104.2,0.30065983]
[1773393191789,0.002,2104.4,2104.3,1.499]
[1773393192889,0.46411788,2104.4,2104.3,1.499]
[1773393193077,0.46411788,2104.4,2103.8,1.44241969]
[1773393193277,0.46411788,2104.4,2103.8,1.44243981]
[1773393193496,0.46411788,2104.4,2103.8,1.44245795]
[1773393193708,1.6501614,2104.3,2103.8,1.44245795]
[1773393193911,0.46211788,2104.2,2103.8,0.25413584]
[1773393194113,0.46211788,2104.2,2103.8,1.18932382]
[1773393194485,0.46211788,2104.2,2103.9,1.499]
[1773393196115,1.65022649,2104.2,2103.9,1.499]
[1773393196515,0.46211788,2104.1,2103.9,1.499]
[1773393198002,1.65028575,2104.1,2103.9,1.499]
[1773393201125,1.18816787,2104.1,2103.8,0.001]
[1773393201324,1.64541982,2104.1,2103.8,0.001]
[1773393202126,0.45725195,2104.0,2103.8,0.001]
[1773393202423,0.45725195,2104.0,2103.7,1.499]
[1773393203124,0.45725195,2104.0,2103.5,0.001]
[1773393203426,0.45925195,2103.9,2103.5,0.001]
[1773393203601,0.45925195,2103.9,2103.8,0.001]
[1773393204125,1.64752135,2103.9,2103.8,0.001]
[1773393205154,0.45725195,2103.8,2103.5,0.001]
[1773393206825,1.64558004,2103.8,2103.6,1.499]
[1773393208292,0.45725195,2103.8,2103.6,1.499]
[1773393208499,1.19016181,2104.1,2103.7,0.25413584]
[1773393208728,1.19016181,2104.1,2103.7,1.44251273]
[1773393208939,1.64741376,2104.1,2103.7,0.25413584]
[1773393209724,0.45725195,2104.0,2103.6,2.68739368]
[1773393210024,0.45725195,2104.0,2103.6,1.75313584]
[1773393210321,0.45725195,2104.0,2103.6,1.499]
[1773393210538,0.45725195,2103.8,2103.5,0.001]
[1773393210722,0.45725195,2103.8,2103.6,1.5]
[1773393210912,1.64551121,2104.0,2103.6,1.75413584]
[1773393211117,1.64551121,2104.0,2103.6,1.80167339]
[1773393213703,0.45725195,2103.9,2103.6,1.80167339]
[1773393214130,0.45725195,2103.9,2103.6,1.54753755]
[1773393214345,0.45725195,2103.9,2103.6,1.5]
[1773393214502,0.45925195,2104.1,2103.6,1.75413584]
[1773393215331,0.002,2104.1,2103.7,0.30167113]
[1773393215638,0.002,2104.1,2103.8,0.25413584]
[1773393215808,1.19015645,2104.1,2103.8,0.25523584]
[1773393216936,0.002,2104.1,2103.8,0.25523584]
[1773393217131,0.45925195,2104.1,2103.8,0.0011]
[1773393218138,1.64532925,2104.3,2103.8,0.25323584]
[1773393218346,0.45725195,2104.2,2103.8,0.25323584]
[1773393218501,0.45725195,2104.2,2103.8,0.0011]
[1773393220301,1.6454084,2104.1,2103.8,0.0011]
[1773393225843,1.18815645,2104.1,2103.8,0.0011]
[1773393226046,0.49820903,2104.0,2103.8,0.0011]
[1773393228013,0.49820903,2104.0,2103.9,1.501]
[1773393228431,1.68642195,2104.0,2103.9,1.501]
[1773393229035,1.68642195,2104.0,2103.8,0.0011]
[1773393229241,0.49820903,2104.0,2103.8,0.0011]
[1773393229741,0.49820903,2104.2,2103.8,0.25323584]
[1773393230042,1.68631624,2104.2,2103.8,0.25323584]
[1773393230346,0.49820903,2104.1,2103.9,1.501]
[1773393230838,0.47847819,2104.0,2103.5,0.001]
[1773393231545,0.47847819,2104.0,2103.5,0.25313584]
[1773393232149,0.47847819,2103.8,2103.5,0.001]
[1773393233538,0.47847819,2103.8,2103.6,1.5]
[1773393234861,0.47847819,2103.7,2103.6,1.5]
[1773393237779,1.18836174,2103.8,2103.6,1.5]
[1773393238254,1.66683993,2103.8,2103.6,1.5]
[1773393238970,0.47847819,2103.8,2103.6,1.5]
[1773393239464,1.66680538,2103.8,2103.6,1.5]
[1773393240170,0.47847819,2103.7,2103.5,0.001]
[1773393241262,1.66680538,2103.8,2103.5,0.001]
[1773393241438,1.66680538,2103.8,2103.6,1.501]
[1773393242169,0.47847819,2103.8,2103.6,1.501]
[1773393242371,1.66680425,2103.8,2103.6,1.501]
[1773393243029,0.47847819,2103.7,2103.6,1.501]
[1773393243275,0.47847819,2103.7,2103.5,0.001]
[1773393243644,1.18839581,2103.7,2103.5,0.001]
[1773393243845,0.47847819,2103.6,2103.5,0.001]
[1773393244573,0.47847819,2103.6,2103.5,1.502]
[1773393245244,0.47847819,2103.6,2103.3,0.001]
[1773393245651,0.47847819,2103.5,2103.3,0.001]
[1773393246859,0.47847819,2103.5,2103.4,1.501]
[1773393247057,1.66690504,2103.7,2103.4,1.501]
[1773393247282,0.47847819,2103.6,2103.4,1.501]
[1773393248174,0.47847819,2103.7,2103.3,0.001]
[1773393248473,0.47847819,2103.7,2103.3,1.44372068]
[1773393249870,0.47847819,2103.7,2103.4,1.501]
[1773393251286,0.47847819,2103.7,2103.5,0.04753981]
[1773393253555,0.47847819,2103.7,2103.6,0.0011]
[1773393253745,4.75396516,2104.0,2103.7,0.25413584]
[1773393253746,1.66770145,2104.0,2103.7,0.25413584]
[1773393253953,1.66770145,2104.0,2103.6,0.0011]
[1773393254171,0.47847819,2103.9,2103.6,0.0011]
[1773393254574,0.47847819,2103.9,2103.7,1.501]
[1773393255162,0.47847819,2103.9,2103.6,0.0011]
[1773393255657,1.66679878,2103.9,2103.6,0.0011]
[1773393255863,0.47847819,2103.8,2103.6,0.0011]
[1773393256478,0.47847819,2103.8,2103.7,1.501]
[1773393257184,0.47847819,2103.8,2103.6,0.0011]
[1773393257719,1.66684216,2103.8,2103.6,0.0011]
[1773393257851,0.47847819,2103.7,2103.6,0.0011]
[1773393258785,0.47847819,2103.7,2103.6,1.5021]
[1773393261985,1.67182382,2103.8,2103.6,1.5021]
[1773393262397,0.48346276,2103.7,2103.6,1.5021]
[1773393265390,0.48346276,2103.7,2103.4,0.25523584]
[1773393265590,0.001,2103.6,2103.4,1.44378556]
[1773393265903,0.001,2103.6,2103.1,0.001]
[1773393265904,0.48446276,2103.6,2103.1,0.001]
[1773393266892,0.48346276,2103.4,2103.2,1.501]
[1773393269200,0.48446276,2103.6,2103.2,1.75513584]
[1773393269386,1.67292771,2103.6,2103.3,0.25413584]
[1773393269787,0.48446276,2103.6,2103.3,0.25413584]
[1773393270001,1.67290649,2103.6,2103.3,0.25413584]
[1773393270227,0.001,2103.6,2103.3,0.25413584]
[1773393270901,1.18944319,2103.6,2103.3,0.25413584]
[1773393272732,0.001,2103.6,2103.4,0.25413584]
[1773393274310,0.001,2103.6,2103.4,1.44268296]
[1773393274518,0.001,2103.6,2103.4,0.25413584]
[1773393274682,0.001,2104.0,2103.6,0.25313584]
[1773393274683,1.67269713,2104.0,2103.6,0.25313584]
[1773393275081,0.001,2104.0,2103.7,1.501]
[1773393275398,0.48346276,2104.2,2103.8,0.25313584]
[1773393275399,1.67157163,2104.2,2103.8,0.25313584]
[1773393275909,0.48346276,2104.1,2103.8,0.25313584]
[1773393276738,1.67162293,2104.1,2103.7,1.75413584]
[1773393277037,0.48346276,2104.0,2103.7,1.75413584]
[1773393278538,0.001,2103.9,2103.7,1.75413584]
[1773393279839,0.001,2103.9,2103.7,1.501]
[1773393283043,0.001,2103.9,2103.6,0.30177339]
[1773393283245,0.48346276,2103.8,2103.4,0.0011]
[1773393284033,1.67184513,2103.7,2103.4,0.0011]
[1773393284242,1.67184513,2103.7,2103.5,1.502]
[1773393285233,1.18838237,2103.7,2103.4,0.0011]
[1773393285435,0.47648964,2103.6,2103.4,0.0011]
[1773393286417,0.47648964,2103.6,2103.5,1.502]
[1773393286924,1.6649285,2103.6,2103.5,1.502]
[1773393289117,1.6649285,2103.6,2103.4,0.0011]
[1773393290550,1.6649285,2103.6,2103.5,1.503]
[1773393294139,1.6649285,2103.6,2103.4,0.0011]
[1773393294754,0.47648964,2103.6,2103.4,0.0011]
[1773393295562,1.66493319,2103.6,2103.5,1.503]
[1773393296530,1.18842075,2103.7,2103.5,1.503]
[1773393297427,1.68539108,2103.7,2103.5,1.503]
[1773393298167,0.49697033,2103.7,2103.5,1.503]
[1773393298328,1.68535865,2103.7,2103.5,1.503]
[1773393298731,0.49697033,2103.8,2103.5,1.503]
[1773393299077,0.001,2103.9,2103.6,0.25423584]
[1773393300467,0.49697033,2104.2,2103.8,0.25323584]
[1773393300967,1.68509039,2104.2,2103.8,0.25323584]
[1773393301375,0.49697033,2104.1,2103.5,1.503]
[1773393301546,0.49697033,2103.9,2103.5,1.503]
[1773393302476,1.68529621,2103.8,2103.5,1.503]
[1773393303049,1.68529621,2103.8,2103.7,0.0011]
[1773393306878,0.49697033,2103.7,2103.4,0.25433584]
[1773393307047,0.49697033,2103.7,2103.4,0.0011]
[1773393307376,1.68528548,2103.9,2103.4,0.25433584]
[1773393307677,0.49697033,2103.8,2103.4,0.25433584]
[1773393308156,0.49697033,2103.8,2103.5,1.75523584]
[1773393308675,0.49697033,2103.8,2103.5,1.502]
[1773393309056,0.49697033,2103.6,2103.4,0.0011]
[1773393310307,0.49697033,2103.6,2103.5,1.502]
[1773393311573,0.49697033,2103.8,2103.5,1.502]
[1773393313875,1.18838237,2103.7,2103.5,1.502]
[1773393314465,1.68533534,2103.8,2103.5,1.502]
[1773393315696,1.68533534,2103.8,2103.7,0.0011]
[1773393316395,1.68501385,2104.3,2103.7,0.25433584]
[1773393316590,0.49697033,2104.2,2103.7,0.25433584]
[1773393318897,0.49697033,2104.1,2103.7,1.44267923]
[1773393319274,0.49697033,2104.1,2103.7,0.25433584]
[1773393319475,0.49697033,2104.1,2103.7,0.0011]
[1773393320971,1.18821292,2104.0,2103.7,0.25433584]
[1773393321373,1.6851725,2104.1,2103.7,0.25433584]
[1773393321571,0.4808258,2104.0,2103.7,0.25433584]
[1773393323095,1.66907416,2104.0,2103.7,0.0011]
[1773393323289,0.4808258,2103.9,2103.7,0.0011]
[1773393327801,0.4808258,2103.9,2103.7,0.04863529]
[1773393329408,1.19022186,2104.0,2103.7,0.30187113]
[1773393329583,0.002,2104.0,2103.7,0.30187113]
[1773393330907,0.4828258,2104.0,2103.7,0.30187113]
[1773393332316,0.80341876,2103.9,2103.5,1.5031]
[1773393332610,1.18848186,2103.6,2103.2,0.25433584]
[1773393332780,1.66930766,2103.6,2103.3,1.482]
[1773393332980,0.4808258,2103.9,2103.4,0.25323584]
[1773393334810,1.66910883,2103.9,2103.4,1.18853366]
[1773393334986,1.66910883,2103.9,2103.5,0.25323584]
[1773393335187,1.66913698,2103.9,2103.5,0.25323584]
[1773393335487,0.4808258,2103.8,2103.5,0.25323584]
[1773393335809,0.4808258,2103.8,2103.3,1.73523584]
[1773393335995,0.4808258,2103.8,2103.3,1.482]
[1773393336194,0.4808258,2103.8,2103.3,1.73523584]
[1773393336505,0.4808258,2103.8,2103.4,0.25323584]
[1773393336813,0.4808258,2103.8,2103.3,1.73523584]
[1773393336997,0.4808258,2103.6,2103.3,1.482]
[1773393338085,0.4808258,2103.6,2103.2,0.0011]
[1773393338281,0.4808258,2103.6,2103.3,1.492]
[1773393338487,0.4808258,2103.6,2103.2,0.0011]
[1773393339212,1.66932116,2103.5,2103.2,0.0011]
[1773393339713,1.66932116,2103.5,2103.3,1.493]
[1773393340096,1.66932116,2103.5,2103.2,0.0011]
[1773393341296,1.66938009,2103.4,2103.3,1.495]
[1773393342208,1.66938009,2103.4,2103.3,1.4961]
[1773393344097,1.66938009,2103.4,2103.2,0.0011]
[1773393344498,1.18853483,2103.5,2103.2,0.25433584]
[1773393345087,1.66156359,2103.5,2103.2,0.25433584]
[1773393345320,0.001,2103.6,2103.2,0.25433584]
[1773393345513,1.18944309,2103.6,2103.3,0.25323584]
[1773393345711,1.1894437,2103.6,2103.3,0.25323584]
[1773393345925,1.66247246,2103.6,2103.3,0.25323584]
[1773393346412,0.001,2103.6,2103.3,0.25323584]
[1773393346608,1.71000599,2103.6,2103.3,0.25323584]
[1773393349929,1.71000599,2103.6,2103.2,1.4991]
[1773393349930,0.47302876,2103.5,2103.2,0.0011]
[1773393350906,0.53577718,2103.4,2103.2,0.0011]
[1773393352026,1.67685011,2103.3,2103.2,0.0011]
[1773393353002,0.48824174,2103.2,2103.0,1.501]
[1773393354630,1.18872141,2103.1,2103.0,1.501]
[1773393354815,1.67696315,2103.1,2103.0,1.501]
[1773393355134,1.67696315,2103.1,2102.9,0.001]
[1773393355695,0.48824174,2103.0,2102.9,0.001]
[1773393356824,0.48824174,2102.9,2102.8,1.502]
[1773393361405,0.48824174,2102.9,2102.6,0.001]
[1773393361603,0.48824174,2102.7,2102.3,0.25423584]
[1773393361805,0.48824174,2102.5,2102.1,0.25423584]
[1773393362434,0.48824174,2102.5,2102.0,0.04757373]
[1773393362613,0.48824174,2102.7,2102.1,1.497]
[1773393362812,0.48824174,2102.5,2102.1,1.497]
[1773393363141,0.48824174,2102.5,2101.9,0.001]
[1773393363433,0.48824174,2102.3,2101.9,0.001]
[1773393363823,0.48824174,2102.3,2101.9,0.25523584]
[1773393364205,1.18911719,2102.4,2101.9,0.25523584]
[1773393364410,0.48824174,2102.3,2101.9,0.001]
[1773393364607,0.48824174,2102.3,2101.9,1.498]
[1773393365641,0.48824174,2102.1,2101.9,1.498]
[1773393367210,0.48824174,2102.1,2101.8,0.001]
[1773393367413,1.67752864,2102.1,2102.0,0.0011]
[1773393367710,1.67752864,2102.1,2101.4,0.25523584]
[1773393367711,0.48824174,2102.0,2101.4,0.25523584]
[1773393367925,0.48824174,2101.8,2101.4,0.25523584]
[1773393368640,0.48824174,2101.8,2101.4,1.75423584]
[1773393368846,0.80341876,2101.5,2100.4,0.25523584]
[1773393369017,0.48824174,2101.5,2100.9,0.25523584]
[1773393369418,0.48824174,2101.5,2101.1,0.25523584]
[1773393369751,1.18952241,2101.7,2101.2,0.25523584]
[1773393369752,0.48824174,2101.7,2101.2,0.25523584]
[1773393369954,0.48824174,2101.7,2101.3,0.25523584]
[1773393370443,0.48824174,2101.7,2101.4,1.499]
[1773393371040,0.48824174,2101.6,2101.3,1.499]
[1773393371218,0.48824174,2101.6,2101.3,2.69727965]
[1773393371420,0.48824174,2101.8,2101.4,2.38795499]
[1773393371748,0.48824174,2101.8,2101.4,1.19827965]
[1773393372842,0.80497188,2101.8,2101.4,1.19827965]
[1773393373059,0.48824174,2101.7,2101.3,1.499]
[1773393373357,0.48824174,2101.7,2101.3,2.69727965]
[1773393373562,1.18944618,2101.9,2101.3,3.88700171]
[1773393373729,1.18944618,2101.9,2101.4,0.25523584]
[1773393373730,0.48824174,2101.8,2101.4,0.25523584]
[1773393373917,0.48824174,2101.8,2101.4,1.45351549]
[1773393374420,0.48824174,2101.8,2101.4,1.19827965]
[1773393376062,0.48824174,2101.8,2101.2,1.18975502]
[1773393376063,0.48824174,2101.6,2101.2,1.5]
[1773393377821,0.80497188,2101.5,2101.2,1.42801]
[1773393378017,0.48824174,2101.4,2101.2,1.42801]
[1773393378448,1.67794497,2101.4,2101.2,1.42801]
[1773393379240,1.67794497,2101.4,2101.1,1.5]
[1773393379446,1.18966822,2101.5,2101.1,1.95523584]
[1773393379850,1.73732878,2101.6,2101.1,1.95523584]
[1773393380260,0.48824174,2101.5,2101.1,1.95523584]
[1773393380423,0.48824174,2101.5,2101.4,0.0011]
[1773393380825,0.48824174,2101.5,2101.1,1.5]
[1773393381127,0.45686292,2101.1,2100.9,0.0011]
[1773393382222,0.45686292,2101.1,2100.8,1.5]
[1773393382223,0.45686292,2101.0,2100.5,1.5]
[1773393382447,0.45686292,2101.0,2100.5,1.95523584]
[1773393382647,0.45686292,2101.0,2100.6,0.45523584]
[1773393382876,0.45686292,2101.5,2100.6,0.47911989]
[1773393383461,0.45686292,2101.5,2100.8,0.45523584]
[1773393383636,0.45686292,2101.5,2101.0,0.45523584]
[1773393384126,0.45686292,2101.5,2101.1,1.18985293]
[1773393384326,0.45686292,2101.5,2101.1,1.2137064]
[1773393384563,1.64650424,2101.5,2101.1,0.47908931]
[1773393384855,0.05948415,2101.4,2101.1,0.45523584]
[1773393385461,0.05948415,2101.4,2101.1,1.95523584]
[1773393386528,1.70603578,2101.4,2101.1,1.5]
[1773393386960,0.51634707,2101.4,2101.1,1.5]
[1773393387176,0.51634707,2101.4,2101.0,1.499]
[1773393387177,0.45686292,2101.3,2101.0,1.499]
[1773393388960,1.64660656,2101.3,2101.0,1.499]
[1773393389363,1.64660656,2101.3,2100.9,1.64519848]
[1773393389567,0.51635273,2101.2,2101.0,1.499]
[1773393389764,0.51635273,2101.2,2100.7,0.45523584]
[1773393389967,0.51635273,2101.2,2100.4,1.19020528]
[1773393390163,0.51635273,2101.2,2100.5,0.45523584]
[1773393391171,0.45686292,2101.0,2100.5,1.499]
[1773393391377,1.18985293,2101.1,2100.1,0.45523584]
[1773393391378,0.45686292,2100.8,2100.1,0.45523584]
[1773393391870,0.45686292,2100.8,2100.0,1.499]
[1773393392449,0.45686292,2100.8,2100.0,1.95423584]
[1773393393266,0.45686292,2100.6,2100.0,1.499]
[1773393393877,0.45686292,2100.5,2100.0,1.499]
[1773393394090,0.45686292,2100.5,2099.6,1.64591536]
[1773393394250,0.45686292,2100.5,2099.5,1.64596465]
[1773393394574,0.45686292,2100.5,2099.6,0.45523584]
[1773393395481,0.45686292,2100.3,2099.7,0.45523584]
[1773393396850,0.45686292,2099.9,2098.9,0.45523584]
[1773393397045,2.46987824,2099.6,2099.0,0.45523584]
[1773393397280,1.19081642,2099.4,2098.6,0.45523584]
[1773393397492,0.45686292,2099.3,2098.7,0.45523584]
[1773393398472,0.45686292,2099.2,2098.8,1.494]
[1773393399697,0.45686292,2099.0,2098.8,1.494]
[1773393400581,0.45686292,2099.2,2098.8,1.494]
[1773393400877,1.64779585,2099.2,2098.8,1.494]
[1773393402184,1.42852076,2100.1,2098.8,1.494]
[1773393402185,1.64745249,2099.8,2098.9,0.47921855]
[1773393402678,0.45686292,2099.7,2098.9,0.47921855]
[1773393403851,0.45686292,2099.7,2098.9,0.45523584]
[1773393404096,0.45686292,2099.7,2098.9,1.64628984]
[1773393404097,0.45686292,2099.5,2098.9,1.64628984]
[1773393404258,0.45686292,2099.5,2098.9,0.45523584]
[1773393404989,0.45686292,2099.5,2098.9,1.64632996]
[1773393405372,0.45686292,2099.5,2098.9,0.45523584]
[1773393405585,0.45686292,2099.5,2098.8,2.68510801]
[1773393405787,0.45686292,2099.5,2098.8,1.494]
[1773393405971,0.4723983,2099.3,2098.8,1.494]
[1773393406171,0.4723983,2099.1,2098.8,1.494]
[1773393406880,0.4723983,2099.1,2098.9,0.0011]
[1773393408189,1.66344165,2099.0,2098.9,0.0011]
[1773393408560,4.76371951,2099.3,2098.9,0.0011]
[1773393408561,1.66335485,2099.2,2098.9,0.0011]
[1773393408868,1.72290134,2099.2,2098.9,0.0011]
[1773393409566,0.05954649,2099.2,2098.9,0.0011]
[1773393409767,0.05954649,2099.2,2098.9,0.45633584]
[1773393410278,0.53194479,2099.2,2098.9,0.0011]
[1773393410482,0.4723983,2099.1,2098.6,0.0011]
[1773393410691,0.53195046,2099.0,2098.6,0.0011]
[1773393410864,0.48389843,2098.9,2098.5,1.498]
[1773393411481,2.07256748,2099.0,2097.8,0.45633584]
[1773393411482,0.48389843,2098.6,2097.8,0.45633584]
[1773393411660,0.48389843,2098.6,2097.9,1.496]
[1773393411865,0.48389843,2098.4,2097.9,1.496]
[1773393412373,1.19144069,2098.3,2097.9,1.496]
[1773393413098,4.76513332,2098.6,2097.9,1.496]
[1773393413099,1.67521854,2098.6,2098.0,1.67198069]
[1773393413394,1.67521854,2098.6,2098.0,1.64794689]
[1773393413800,0.48389843,2098.9,2098.1,0.48035942]
[1773393414262,1.67500373,2098.9,2098.2,1.19149747]
[1773393414465,0.05955784,2098.8,2098.3,0.48034581]
[1773393415428,1.73456551,2098.9,2098.3,0.48034581]
[1773393415695,0.54345343,2098.9,2098.3,0.48034581]
[1773393415991,0.059555,2098.9,2098.3,0.45633584]
[1773393416191,0.05955216,2099.0,2098.3,0.45633584]
[1773393416585,1.25059847,2099.0,2098.4,1.64771975]
[1773393416788,1.25059847,2099.0,2098.5,1.499]
[1773393417166,0.05955216,2099.0,2098.6,0.02399747]
[1773393417367,0.48389843,2098.9,2098.5,1.499]
[1773393417590,0.48389843,2098.6,2097.9,1.64797112]
[1773393417994,0.48389843,2098.6,2097.9,0.45633584]
[1773393418196,0.48389843,2098.6,2097.8,1.19168115]
[1773393418907,0.48389843,2098.4,2097.9,1.494]
[1773393419577,0.48389843,2098.4,2098.3,0.0011]
[1773393420797,1.1913717,2098.5,2098.3,0.0011]
[1773393421867,0.05956919,2098.4,2098.3,0.0011]
[1773393422699,1.2509531,2098.4,2098.3,0.0011]
[1773393422878,1.2509531,2098.4,2098.0,0.0011]
[1773393422879,0.48389843,2098.3,2098.0,0.0011]
[1773393423781,0.48389843,2098.3,2097.6,2.31145517]
[1773393424605,0.48389843,2098.0,2096.4,6.40733336]
[1773393424806,2.49691375,2097.3,2096.5,0.45743584]
[1773393424973,1.67579354,2097.5,2096.5,0.45743584]
[1773393425410,0.48389843,2097.5,2096.6,0.45743584]
[1773393425584,1.19183873,2097.6,2096.6,0.45743584]
[1773393425986,1.19183873,2097.6,2096.8,0.45743584]
[1773393426181,0.48389843,2097.5,2096.8,0.45743584]
[1773393426406,0.48389843,2097.5,2096.5,0.45743584]
[1773393426606,0.48389843,2097.5,2096.7,1.496]
[1773393426811,1.19195194,2097.4,2096.6,2.68840675]
[1773393427013,0.48389843,2097.2,2096.6,1.496]
[1773393427708,0.48389843,2097.2,2096.4,2.6894786]
[1773393427913,1.67582537,2097.5,2096.5,0.45743584]
[1773393428213,0.48389843,2097.4,2096.5,0.45743584]
[1773393428604,0.48389843,2097.4,2096.4,2.6894786]
[1773393428605,0.48389843,2097.7,2096.8,0.45743584]
[1773393428804,0.48389843,2098.0,2097.0,1.64961514]
[1773393429109,0.05958339,2097.9,2097.2,0.45743584]
[1773393429690,1.1915564,2098.1,2097.2,0.45743584]
[1773393430086,5.24975573,2098.3,2097.2,0.45743584]
[1773393430087,0.54347898,2098.0,2097.2,0.45743584]
[1773393430317,0.05958055,2098.0,2097.2,0.45743584]
[1773393430521,1.19144256,2098.3,2097.2,0.45743584]
[1773393430688,0.05957487,2098.2,2097.2,0.45743584]
[1773393431012,1.67545269,2098.1,2097.2,1.6494933]
[1773393431221,0.48389843,2097.8,2097.2,1.5]
[1773393431384,0.5434875,2097.7,2097.2,1.5]
[1773393431813,2.02095154,2097.5,2096.6,1.64979661]
[1773393432113,0.48389843,2097.4,2096.3,1.65106876]
[1773393432325,0.48389843,2097.4,2097.1,0.0011]
[1773393432520,0.48389843,2097.4,2096.4,0.02409071]
[1773393432699,0.48389843,2097.4,2096.9,0.0011]
[1773393432886,1.19200877,2097.3,2096.9,0.0011]
[1773393433227,1.6759072,2097.3,2096.9,0.0011]
[1773393433388,0.48389843,2097.2,2096.9,0.0011]
[1773393433789,0.48389843,2097.2,2096.4,0.01348515]
[1773393434401,0.48389843,2097.2,2096.3,2.69453292]
[1773393434601,0.48389843,2097.2,2096.3,2.69457334]
[1773393434798,0.48389843,2097.2,2096.3,1.502]
[1773393435126,0.48389843,2097.0,2096.3,2.69456108]
[1773393435697,1.19212245,2097.1,2096.3,3.15309692]
[1773393435896,1.67602088,2097.1,2096.3,3.15309692]
[1773393436224,0.48389843,2097.0,2096.4,1.503]
[1773393436395,0.48389843,2096.9,2096.2,1.503]
[1773393436724,0.48389843,2096.9,2096.1,2.6956567]
[1773393437102,1.67619144,2096.8,2096.1,2.6956567]
[1773393437420,4.82787303,2097.2,2096.1,3.15419254]
[1773393437421,0.48389843,2097.1,2096.1,3.15419254]
[1773393437942,0.54350739,2097.0,2096.1,3.15419254]
[1773393438823,0.54350739,2097.0,2096.1,1.1926567]
[1773393439200,0.48389843,2096.8,2096.1,1.1926567]
[1773393439399,0.48389843,2096.8,2096.0,2.69670467]
[1773393440322,0.54351308,2096.8,2096.0,1.19270467]
[1773393440529,0.54351308,2096.8,2096.0,2.69770467]
[1773393440709,0.54351308,2096.8,2096.0,2.69772815]
[1773393440912,0.46525913,2096.6,2096.0,1.505]
[1773393441299,0.46525913,2096.4,2095.8,1.19285669]
[1773393441632,0.46525913,2096.4,2095.8,1.506]
[1773393441796,0.46525913,2096.4,2095.8,2.69885881]
[1773393441998,1.19246362,2096.5,2095.8,3.18154446]
[1773393442197,1.19244223,2096.6,2095.8,3.18154446]
[1773393442423,1.19244223,2096.6,2095.9,0.45853584]
[1773393443203,1.65770136,2096.6,2096.0,1.19274809]
[1773393443625,0.46525913,2096.5,2095.9,1.19275995]
[1773393444399,0.46525913,2096.5,2095.9,1.21690406]
[1773393444606,0.46525913,2096.5,2096.0,0.0011]
[1773393444831,0.001,2096.8,2096.1,0.45853584]
[1773393445505,1.19329301,2096.8,2096.2,1.19263429]
[1773393445707,0.03550243,2096.7,2096.2,1.19263429]
[1773393446709,0.03550243,2096.7,2096.2,1.20529982]
[1773393447724,0.61873451,2096.7,2096.2,1.20529982]
[1773393448038,0.61873451,2096.7,2096.2,1.24033966]
[1773393448436,0.58323208,2096.6,2096.0,0.0011]
[1773393448636,1.22786175,2096.7,2096.1,1.508]
[1773393448637,0.58323208,2096.4,2096.1,1.508]
[1773393448836,0.58323208,2096.4,2095.8,1.19394587]
[1773393449425,0.58323208,2096.2,2095.8,1.19394587]
[1773393449627,1.77589097,2096.2,2095.8,0.0011]
[1773393450012,1.77589097,2096.2,2095.9,1.508]
[1773393450213,0.58323208,2096.2,2095.9,1.508]
[1773393451412,0.58323208,2096.5,2096.0,0.04770992]
[1773393451609,4.76962701,2096.7,2096.0,1.19274809]
[1773393451610,0.58323208,2096.7,2096.0,1.19274809]
[1773393451812,0.58323208,2096.7,2096.1,0.04770764]
[1773393452034,0.03650243,2096.8,2096.1,0.04770764]
[1773393452211,0.001,2096.8,2096.1,0.04770764]
[1773393452968,0.001,2096.8,2096.2,2.17693104]
[1773393453724,0.001,2096.8,2096.3,1.19257739]
[1773393455648,0.001,2096.8,2096.4,1.51]
[1773393456027,0.001,2096.8,2096.5,1.19246362]
[1773393457021,0.58323208,2097.5,2096.5,1.19246362]
[1773393458531,0.58323208,2097.3,2096.5,1.19246362]
[1773393459652,0.58323208,2097.3,2096.5,1.23628983]
[1773393460223,0.58323208,2097.1,2096.3,0.0011]
[1773393460420,1.19190304,2097.5,2096.2,1.512]
[1773393460421,0.58323208,2096.6,2096.2,1.512]
[1773393460741,0.58268208,2096.5,2096.2,1.512]
[1773393461246,0.58268208,2096.5,2096.0,0.0011]
[1773393461657,0.58268208,2096.5,2096.0,1.19384292]
[1773393462151,0.04382621,2096.6,2096.0,1.19384292]
[1773393462328,0.55057936,2096.8,2096.1,1.53470764]
[1773393462529,0.55057936,2097.2,2096.2,1.19263429]
[1773393462729,0.04382621,2097.1,2096.3,0.04770309]
[1773393463151,0.55057936,2097.2,2096.3,2.06865463]
[1773393465075,0.55057936,2097.2,2096.4,1.19252051]
[1773393467568,0.55057936,2097.2,2096.5,0.04769854]
[1773393468371,5.00228225,2098.0,2096.5,0.04769854]
[1773393468372,0.55057936,2098.0,2096.6,30.0]
[1773393468574,0.55057936,2097.9,2097.0,27.521366]
[1773393468769,0.55057936,2097.9,2097.0,22.515552]
[1773393469453,0.55057936,2097.9,2097.1,1.19212245]
[1773393469765,0.001,2098.1,2097.2,2.02095154]
[1773393469968,0.001,2098.1,2097.5,2.02095154]
[1773393471571,0.001,2098.1,2097.6,1.19183829]
[1773393473680,0.55057936,2098.6,2097.8,2.02095154]
[1773393473878,0.55057936,2098.9,2097.9,1.509]
[1773393474172,0.55057936,2098.9,2098.1,2.02095154]
[1773393474363,1.19100908,2099.1,2098.1,2.02095154]
[1773393474568,0.55057936,2099.3,2098.1,4.51031695]
[1773393475077,1.19081642,2099.4,2098.1,4.51031695]
[1773393475078,0.55057936,2099.4,2098.4,2.02095154]
[1773393475245,0.55057936,2099.4,2098.5,1.511]
[1773393475572,0.55057936,2099.1,2098.5,1.511]
[1773393475779,1.74160525,2099.1,2098.6,1.19127037]
[1773393476146,0.55057936,2099.0,2098.5,1.511]
[1773393476344,0.55057936,2099.0,2098.2,1.19145895]
[1773393476548,0.55057936,2099.0,2098.3,1.512]
[1773393477974,0.55057936,2098.8,2098.3,2.7034132]
[1773393478171,0.55057936,2098.8,2098.3,2.7034327]
[1773393480462,0.55057936,2099.0,2098.3,2.7034327]
[1773393480663,0.55057936,2099.3,2098.3,2.7034327]
[1773393481747,0.55057936,2099.3,2098.3,2.75109032]
[1773393482455,0.001,2098.6,2098.3,2.75109032]
[1773393482657,0.55057936,2099.3,2098.4,23.608744]
[1773393482857,0.55057936,2099.3,2098.5,2.06860461]
[1773393483086,1.19082686,2099.4,2098.5,2.02095154]
[1773393483383,1.19082686,2099.4,2098.5,2.06860461]
[1773393483384,0.55057936,2099.4,2098.5,2.06860461]